fUST/lending_fUST_20241209
["ID","MTS","AMOUNT","RATE_DAILY","PERIOD"]
[344700259,1733725841093,-500.0,0.00018879,2]
[344700261,1733725841103,-500.0,0.00018879,2]
[344700263,1733725841112,-500.0,0.00018879,2]
[344700265,1733725841121,-122.52929542,0.00018879,2]
[344700267,1733725841133,-403.1241432,0.00018879,2]
[344700269,1733725841145,-500.0,0.00018879,2]
[344700271,1733725841158,-500.0,0.00018879,2]
[344700273,1733725841168,-500.0,0.00018879,2]
[344700275,1733725841178,-500.0,0.00018879,2]
[344700277,1733725841188,-500.0,0.00018879,2]
[344700279,1733725841198,-500.0,0.00018879,2]
[344700280,1733725841207,-500.0,0.00018879,2]
[344700281,1733725841218,-500.0,0.00018879,2]
[344700282,1733725841227,-500.0,0.00018879,2]
[344700283,1733725841237,-500.0,0.00018879,2]
[344700284,1733725841247,-500.0,0.00018879,2]
[344700285,1733725841257,-500.0,0.00018879,2]
[344700286,1733725841267,-500.0,0.00018879,2]
[344700287,1733725841276,-506.10527099,0.00018879,2]
[344700288,1733725841286,-454.05784971,0.00018879,2]
[344700289,1733725841298,-45.94215029,0.00018879,2]
[344700290,1733725841307,-500.0,0.00018879,2]
[344700291,1733725841317,-500.0,0.00018879,2]
[344700292,1733725841326,-500.0,0.00018879,2]
[344700293,1733725841335,-500.0,0.00018879,2]
[344700294,1733725841344,-500.0,0.00018879,2]
[344700295,1733725841354,-500.0,0.00018879,2]
[344700296,1733725841363,-500.0,0.00018879,2]
[344700297,1733725841372,-500.0,0.00018879,2]
[344700298,1733725841382,-500.0,0.00018879,2]
[344700299,1733725841394,-500.0,0.00018879,2]
[344700300,1733725841407,-500.0,0.00018879,2]
[344700301,1733725841416,-500.0,0.00018879,2]
[344700302,1733725841425,-316.34991283,0.00018879,2]
[344700303,1733725841435,-457.61823742,0.00018879,2]
[344700304,1733725841444,-42687.85546383,0.0001888,2]
[344700516,1733725843872,-602.33287189,0.0001878,2]
[344700518,1733725843882,-500.0,0.00018873,2]
[344700520,1733725843895,-4594782.13255478,0.0001888,2]
[344701370,1733726371337,404.276047,0.0001756,2]
[344701371,1733726571444,334.498526,0.00013973,2]
[344701372,1733726640318,13078.4664562,0.00017589,2]
[344701373,1733726782397,463.2566682,0.00017593,2]
[344701374,1733726786970,200.0,0.000254,120]
[344701375,1733726862381,300.0,0.000254,120]
[344701376,1733726994026,10222.619291,0.00017548,2]
[344701377,1733726996716,1286.34718,0.00017643,2]
[344701384,1733727032075,-809.6409781,0.00017717,2]
[344701386,1733727032086,-4293.14842043,0.00017717,2]
[344701424,1733727038004,-825.19982806,0.00017717,2]
[344701427,1733727038016,-949.17999651,0.00017717,2]
[344701429,1733727038026,-5.50015524,0.00017853,2]
[344701431,1733727038038,-450.58082436,0.00017853,2]
[344701433,1733727038048,-150.0,0.00018401,2]
[344701435,1733727038058,-300.0,0.00018481,2]
[344701437,1733727038068,-300.0,0.00018481,2]
[344701439,1733727038078,-9405.12636566,0.0001852,2]
[344701441,1733727038089,-169.173,0.00018521,2]
[344701444,1733727038099,-851.38788878,0.00018773,2]
[344701446,1733727038109,-542.09958471,0.0001878,2]
[344701448,1733727038118,-500.0,0.00018873,2]
[344701450,1733727038128,-500.744659,0.00018873,2]
[344701452,1733727038138,-500.0,0.00018873,2]
[344701454,1733727038147,-500.0,0.00018873,2]
[344701456,1733727038157,-500.0,0.00018873,2]
[344701458,1733727038166,-172.35929398,0.00018879,2]
[344701459,1733727038176,-82.39480294,0.00018879,2]
[344701464,1733727040094,-501.26704921,0.00018879,2]
[344701465,1733727040103,-500.0,0.00018879,2]
[344701466,1733727040112,-167.34503011,0.00018879,2]
[344701467,1733727040121,-500.0,0.00018879,2]
[344701468,1733727040131,-447.29482651,0.00018879,2]
[344701469,1733727040140,-96866.35958514,0.0001888,2]
[344701800,1733727046102,-500.0,0.00018873,2]
[344701802,1733727046112,-3304.73650804,0.0001888,2]
[344705770,1733727088193,162.78380924,0.00017617,2]
[344705778,1733727101223,195.56525057,0.00017617,2]
[344705781,1733727569985,-524.582,0.0001794,2]
[344705782,1733727570011,-7066.0138701,0.0001802,2]
[344705783,1733727570034,-300.0,0.00018583,2]
[344705784,1733727570058,-300.0,0.00018583,2]
[344705785,1733727570082,-10541.79602944,0.00018584,2]
[344705786,1733727570104,-542.09958471,0.0001878,2]
[344705787,1733727570127,-2787.21067925,0.0001878,2]
[344705788,1733727570150,-194.83,0.00018869,2]
[344705789,1733727570173,-194.83,0.0001887,2]
[344705790,1733727570286,-152.0,0.0001887,2]
[344705791,1733727570308,-1137.53276903,0.00018873,2]
[344705792,1733727570331,-500.0,0.00018873,2]
[344705793,1733727570353,-500.744659,0.00018873,2]
[344705794,1733727570374,-500.0,0.00018873,2]
[344705795,1733727570396,-500.0,0.00018873,2]
[344705796,1733727570419,-500.0,0.00018873,2]
[344705797,1733727570440,-500.0,0.00018873,2]
[344705798,1733727570464,-442.21075321,0.00018873,2]
[344705799,1733727570487,-500.0,0.00018873,2]
[344705800,1733727570510,-500.0,0.00018873,2]
[344705801,1733727570533,-508.96090823,0.00018873,2]
[344705802,1733727570555,-500.0,0.00018873,2]
[344705803,1733727570579,-161.34708265,0.00018873,2]
[344705804,1733727570601,-500.61299884,0.00018873,2]
[344705805,1733727570624,-1000.5500499,0.00018879,2]
[344705806,1733727570647,-169.173,0.00018879,2]
[344705807,1733727570670,-505.46811957,0.00018879,2]
[344705808,1733727570694,-500.0,0.00018879,2]
[344705809,1733727570717,-500.0,0.00018879,2]
[344705810,1733727570742,-500.0,0.00018879,2]
[344705811,1733727570765,-500.0,0.00018879,2]
[344705812,1733727570788,-500.0,0.00018879,2]
[344705813,1733727570812,-500.0,0.00018879,2]
[344705814,1733727570835,-500.0,0.00018879,2]
[344705815,1733727570861,-500.0,0.00018879,2]
[344705816,1733727570884,-500.0,0.00018879,2]
[344705817,1733727570907,-500.0,0.00018879,2]
[344705818,1733727570930,-500.0,0.00018879,2]
[344705819,1733727570953,-500.0,0.00018879,2]
[344705820,1733727570976,-559.46043696,0.00018879,2]
[344705821,1733727571001,-500.0,0.00018879,2]
[344705822,1733727571028,-271.68564138,0.00018879,2]
[344705823,1733727571052,-500.0,0.00018879,2]
[344705824,1733727571076,-500.0,0.00018879,2]
[344705825,1733727571099,-353.22949093,0.00018879,2]
[344705826,1733727571123,-500.0,0.00018879,2]
[344705827,1733727571145,-500.0,0.00018879,2]
[344705828,1733727571171,-500.0,0.00018879,2]
[344705829,1733727571194,-500.0,0.00018879,2]
[344705830,1733727571217,-500.0,0.00018879,2]
[344705831,1733727571240,-500.0,0.00018879,2]
[344705832,1733727571265,-500.0,0.00018879,2]
[344705833,1733727571287,-500.0,0.00018879,2]
[344705834,1733727571310,-500.0,0.00018879,2]
[344705835,1733727571333,-500.0,0.00018879,2]
[344705836,1733727571357,-500.0,0.00018879,2]
[344705837,1733727571380,-500.0,0.00018879,2]
[344705838,1733727571404,-500.0,0.00018879,2]
[344705839,1733727571429,-500.0,0.00018879,2]
[344705840,1733727571453,-500.0,0.00018879,2]
[344705841,1733727571478,-500.0,0.00018879,2]
[344705842,1733727571504,-549.99999999,0.00018879,2]
[344705843,1733727571528,-500.0,0.00018879,2]
[344705844,1733727571552,-500.0,0.00018879,2]
[344705845,1733727571577,-50235.66192681,0.0001888,2]
[344705846,1733727618198,342.205774,0.00013973,2]
[344705850,1733728154586,300.0,0.000176,3]
[344705851,1733728188148,300.0,0.000176,3]
[344705866,1733728232207,-300.0,0.00018048,2]
[344705868,1733728232217,-300.0,0.00018048,2]
[344705869,1733728232227,-143.30884386,0.00018049,2]
[344705870,1733728232375,-760.5,0.00018049,2]
[344705894,1733728238255,-16734.35452594,0.00018049,2]
[344705895,1733728238264,-413.700743,0.00018095,2]
[344705896,1733728238274,-10541.79602944,0.00018491,2]
[344705897,1733728238286,-1221.95790069,0.00018773,2]
[344705898,1733728238298,-487.88962623,0.0001878,2]
[344705899,1733728238308,-300.0,0.000188,4]
[344705900,1733728238317,-500.0,0.00018873,2]
[344705901,1733728238327,-500.0,0.00018873,2]
[344705902,1733728238337,-500.0,0.00018873,2]
[344705903,1733728238347,-500.0,0.00018873,2]
[344705904,1733728238356,-500.0,0.00018873,2]
[344705905,1733728238366,-500.0,0.00018873,2]
[344705906,1733728238376,-500.0,0.00018873,2]
[344705907,1733728238385,-500.0,0.00018873,2]
[344705908,1733728238395,-500.0,0.00018873,2]
[344705909,1733728238404,-503.03778087,0.00018873,2]
[344705910,1733728238414,-188383.8299516,0.0001888,2]
[344705911,1733728238426,-32394.76089249,0.0001888,2]
[344705912,1733728238437,-1510.8924315,0.0001888,2]
[344705913,1733728238540,-8784.49085966,0.0001888,2]
[344705961,1733728240363,-49514.908832,0.0001888,2]
[344706195,1733728243689,-2300.0,0.0001888,2]
[344706198,1733728243701,-86277.21613743,0.0001888,2]
[344706203,1733728243742,-5307.68409011,0.0001888,2]
[344706466,1733728246405,-15600.00000012,0.0001888,2]
[344706469,1733728246416,-11211.63718234,0.0001888,2]
[344706485,1733728510504,351.224956,0.00013973,2]
[344706578,1733729436086,-300.0,0.00017796,2]
[344706580,1733729436096,-300.0,0.00017796,2]
[344706582,1733729436106,-23519.2311657,0.00017797,2]
[344706584,1733729436116,-312.631732,0.00017878,2]
[344706586,1733729436125,-511.669,0.0001794,2]
[344706588,1733729436144,-10541.79602944,0.0001847,2]
[344706590,1733729436153,-1045.21842868,0.0001878,2]
[344706592,1733729436163,-500.0,0.00018873,2]
[344706594,1733729436178,-549.13719055,0.00018873,2]
[344706596,1733729436188,-586.18879979,0.00018873,2]
[344706598,1733729436198,-500.0,0.00018873,2]
[344706600,1733729436208,-500.0,0.00018873,2]
[344706602,1733729436217,-500.0,0.00018873,2]
[344706604,1733729436227,-502.35900292,0.00018873,2]
[344706605,1733729436237,-510.29449939,0.00018873,2]
[344706607,1733729436246,-500.0,0.00018873,2]
[344706609,1733729436255,-169.174,0.00018873,2]
[344706610,1733729436265,-800.78894149,0.00018879,2]
[344706611,1733729436275,-394.66707037,0.00018879,3]
[344706612,1733729436284,-234.9403551,0.00018879,2]
[344706613,1733729436294,-188.0018069,0.00018879,2]
[344706614,1733729436305,-201.14031606,0.00018879,2]
[344706615,1733729436315,-500.0,0.00018879,2]
[344706616,1733729436326,-500.0,0.00018879,2]
[344706617,1733729436336,-291.29732488,0.00018879,2]
[344706618,1733729436346,-500.0,0.00018879,2]
[344706619,1733729436356,-500.0,0.00018879,2]
[344706620,1733729436367,-500.0,0.00018879,2]
[344706621,1733729436378,-500.0,0.00018879,2]
[344706622,1733729436389,-368.95480699,0.00018879,2]
[344706623,1733729436399,-500.0,0.00018879,2]
[344706624,1733729436409,-500.0,0.00018879,2]
[344706625,1733729436419,-500.0,0.00018879,2]
[344706626,1733729436429,-500.0,0.00018879,2]
[344706627,1733729436438,-500.0,0.00018879,2]
[344706628,1733729436447,-500.0,0.00018879,2]
[344706629,1733729436457,-500.0,0.00018879,2]
[344706630,1733729436468,-500.0,0.00018879,2]
[344706631,1733729436478,-500.0,0.00018879,2]
[344706632,1733729436487,-500.0,0.00018879,2]
[344706633,1733729436497,-500.0,0.00018879,2]
[344706634,1733729436506,-500.0,0.00018879,2]
[344706635,1733729436516,-500.0,0.00018879,2]
[344706636,1733729436525,-500.0,0.00018879,2]
[344706637,1733729436535,-500.0,0.00018879,2]
[344706638,1733729436545,-300.85288985,0.00018879,2]
[344706639,1733729436555,-500.0,0.00018879,2]
[344706640,1733729436569,-500.0,0.00018879,2]
[344706641,1733729436579,-500.0,0.00018879,2]
[344706642,1733729436588,-500.0,0.00018879,2]
[344706643,1733729436598,-500.0,0.00018879,2]
[344706644,1733729436608,-500.0,0.00018879,2]
[344706645,1733729436618,-500.0,0.00018879,2]
[344706646,1733729436634,-496852.51972779,0.0001888,2]
[344706647,1733729436647,-24088.41632406,0.0001888,2]
[344706648,1733729436753,-879.51927221,0.0001888,2]
[344706649,1733729436765,-26689.5093675,0.0001888,2]
[344706650,1733729436779,-793.734752,0.0001888,2]
[344706683,1733729438373,-19444.9999998,0.0001888,2]
[344706686,1733729438390,-9840.0,0.0001888,2]
[344706690,1733729438425,-9589.99983654,0.0001888,2]
[344706692,1733729438437,-4355.75398409,0.0001888,2]
[344706934,1733729442339,-49349.95039001,0.0001888,2]
[344706935,1733729442351,-432.61497213,0.0001888,2]
[344707237,1733729446603,-3901.40000007,0.0001888,2]
[344707239,1733729446618,-89607.48659768,0.0001888,2]
[344707243,1733729446666,-8242.86281766,0.0001888,2]
[344707254,1733729451662,341.696246,0.00013973,2]
[344707257,1733730001300,6587.0,0.00026,60]
[344707258,1733730038212,1599.14063188,0.00030278,30]
[344707273,1733730490349,340.668343,0.00013973,2]
[344707302,1733730632570,-435.064658,0.00017758,2]
[344707304,1733730632580,-501.915,0.0001794,2]
[344707306,1733730632589,-169.17400201,0.00018502,2]
[344707308,1733730632599,-300.0,0.00018628,2]
[344707310,1733730632608,-5394.86535619,0.00018629,2]
[344707349,1733730638644,-1002.25990182,0.00018629,2]
[344707351,1733730638656,-4144.67077143,0.00018629,2]
[344707352,1733730638666,-1356.58208931,0.00018779,2]
[344707353,1733730638675,-940.69658574,0.0001878,2]
[344707354,1733730638689,-500.0,0.00018873,2]
[344707355,1733730638699,-160.24899885,0.00018873,2]
[344707356,1733730638709,-262.20163386,0.00018873,2]
[344707357,1733730638718,-160.31236981,0.00018873,2]
[344707358,1733730638726,-500.0,0.00018873,2]
[344707359,1733730638735,-500.0,0.00018873,2]
[344707360,1733730638745,-501.4324947,0.00018873,2]
[344707361,1733730638754,-500.0,0.00018873,2]
[344707362,1733730638763,-500.0,0.00018873,2]
[344707363,1733730638772,-667.3241179,0.00018879,2]
[344707364,1733730638781,-500.0,0.00018879,2]
[344707365,1733730638790,-500.0,0.00018879,2]
[344707366,1733730638799,-500.0,0.00018879,2]
[344707367,1733730638809,-500.0,0.00018879,2]
[344707368,1733730638819,-500.0,0.00018879,2]
[344707369,1733730638828,-500.0,0.00018879,2]
[344707370,1733730638838,-500.0,0.00018879,2]
[344707371,1733730638847,-500.0,0.00018879,2]
[344707372,1733730638856,-500.0,0.00018879,2]
[344707373,1733730638866,-500.0,0.00018879,2]
[344707374,1733730638875,-500.0,0.00018879,2]
[344707375,1733730638885,-500.0,0.00018879,2]
[344707376,1733730638895,-426.25673426,0.00018879,2]
[344707377,1733730638904,-500.0,0.00018879,2]
[344707378,1733730638913,-500.0,0.00018879,2]
[344707379,1733730638923,-500.0,0.00018879,2]
[344707380,1733730638933,-500.0,0.00018879,2]
[344707381,1733730638943,-500.0,0.00018879,2]
[344707382,1733730638952,-500.0,0.00018879,2]
[344707383,1733730638962,-500.0,0.00018879,2]
[344707384,1733730638971,-500.0,0.00018879,2]
[344707385,1733730638981,-500.0,0.00018879,2]
[344707386,1733730638990,-500.0,0.00018879,2]
[344707387,1733730638999,-500.0,0.00018879,2]
[344707388,1733730639008,-500.0,0.00018879,2]
[344707389,1733730639018,-500.0,0.00018879,2]
[344707390,1733730639028,-500.0,0.00018879,2]
[344707391,1733730639037,-500.0,0.00018879,2]
[344707392,1733730639047,-500.0,0.00018879,2]
[344707393,1733730639056,-500.0,0.00018879,2]
[344707394,1733730639065,-500.0,0.00018879,2]
[344707395,1733730639075,-500.0,0.00018879,2]
[344707396,1733730639084,-500.0,0.00018879,2]
[344707397,1733730639094,-500.0,0.00018879,2]
[344707398,1733730639103,-500.0,0.00018879,2]
[344707399,1733730639112,-500.0,0.00018879,2]
[344707400,1733730639122,-500.0,0.00018879,2]
[344707401,1733730639131,-500.0,0.00018879,2]
[344707402,1733730639140,-500.0,0.00018879,2]
[344707403,1733730639149,-500.0,0.00018879,2]
[344707404,1733730639158,-500.0,0.00018879,2]
[344707405,1733730639167,-389.9413936,0.00018879,2]
[344707406,1733730639176,-500.0,0.00018879,2]
[344707407,1733730639187,-500.0,0.00018879,2]
[344707408,1733730639196,-500.0,0.00018879,2]
[344707409,1733730639206,-500.0,0.00018879,2]
[344707410,1733730639215,-500.0,0.00018879,2]
[344707411,1733730639225,-500.0,0.00018879,2]
[344707412,1733730639234,-500.0,0.00018879,2]
[344707413,1733730639244,-500.0,0.00018879,2]
[344707414,1733730639253,-500.0,0.00018879,2]
[344707415,1733730639263,-500.0,0.00018879,2]
[344707416,1733730639273,-497.53784197,0.00018879,2]
[344707417,1733730639282,-500.0,0.00018879,2]
[344707418,1733730639292,-423.4503455,0.00018879,2]
[344707419,1733730639301,-39.358073,0.00018879,2]
[344707617,1733730643990,-500.0,0.00018873,2]
[344707619,1733730644000,-460.641927,0.00018879,2]
[344707621,1733730644010,-500.0,0.00018879,2]
[344707623,1733730644019,-276.23506074,0.00018879,2]
[344707625,1733730644029,-374.09497049,0.00018879,2]
[344707626,1733730644038,-500.0,0.00018879,2]
[344707637,1733730644132,-481.17681717,0.00018879,2]
[344707639,1733730644144,-11778.5508046,0.0001888,2]
[344707641,1733730644156,-35513.88545983,0.0001888,2]
[344707728,1733730815252,-250.0,0.00018416,2]
[344707729,1733730815282,-552.65133112,0.0001878,2]
[344707730,1733730815295,-194.69733776,0.0001878,2]
[344707731,1733730815304,-55.30266224,0.00018873,2]
[344707732,1733730815316,-444.69733776,0.00018873,2]
[344707733,1733730815325,-264.21043435,0.00018873,2]
[344707734,1733730815334,-38.44089677,0.00018879,2]
[344707735,1733730866639,-549.69661546,0.00018879,2]
[344707736,1733730866672,-300.0,0.00018879,2]
[344707737,1733730866704,-300.0,0.00018879,2]
[344707738,1733730866723,-549.69661546,0.0001888,2]
[344707739,1733730866734,-300.0,0.0001888,2]
[344707740,1733730866766,-300.0,0.0001888,2]
[344707741,1733730866777,-4400.60676908,0.0001888,2]
[344707742,1733730908835,-458.08051288,0.00018879,2]
[344707743,1733730908868,-300.0,0.00018879,2]
[344707744,1733730908902,-183.83897424,0.00018879,2]
[344707745,1733730980811,-812.99067188,0.0001878,2]
[344707748,1733731110411,-846.62692722,0.0001878,2]
[344707749,1733731110441,-500.0,0.00018873,2]
[344707750,1733731110559,-500.0,0.00018873,2]
[344707779,1733731333450,2418.8439522,0.00017651,2]
[344707791,1733731379507,339.695491,0.00013973,2]
[344707792,1733731479280,1480.21707638,0.0003028,30]
[344707796,1733731634606,-318.4640012,0.00017783,2]
[344707797,1733731634626,-429.326179,0.00017783,2]
[344707798,1733731634646,-480.995,0.0001794,2]
[344707799,1733731634668,-197.199,0.00018502,2]
[344707800,1733731634689,-300.0,0.00018595,2]
[344707801,1733731634710,-300.0,0.00018595,2]
[344707802,1733731634731,-10541.79602944,0.00018596,2]
[344707803,1733731634751,-761.96423448,0.0001878,2]
[344707804,1733731634863,-1132.72073572,0.0001878,2]
[344707805,1733731634889,-500.0,0.00018873,2]
[344707806,1733731634914,-500.0,0.00018873,2]
[344707807,1733731634935,-500.0,0.00018873,2]
[344707808,1733731634956,-381.73376074,0.00018879,2]
[344707809,1733731634977,-441.85083056,0.00018879,2]
[344707810,1733731635003,-1589625.95022886,0.0001888,2]
[344707811,1733731686281,-250.0,0.00018822,2]
[344707812,1733731686306,-318.11146728,0.00018879,2]
[344707813,1733731686328,-300.0,0.00018879,2]
[344707814,1733731686350,-300.0,0.00018879,2]
[344707815,1733731686373,-1168440.37901114,0.0001888,2]
[344707816,1733731686496,-500.000001,0.0001888,2]
[344707817,1733731686520,-157.490776,0.000189,2]
[344707818,1733731686542,-157.146763,0.000189,2]
[344707819,1733731686564,-151.0,0.000189,2]
[344707820,1733731686585,-151.0,0.000189,2]
[344707821,1733731690141,265.0928894,0.00018879,2]
[344707822,1733731701412,-9602.93756949,0.00019062,2]
[344707823,1733731701433,-175.061626,0.00019178,2]
[344707824,1733731701453,-170.594424,0.00019178,2]
[344707825,1733731701475,-152.24452689,0.00019421,2]
[344707826,1733731701586,-301.6954452,0.00019421,2]
[344707827,1733731701607,-571.40167307,0.00019878,2]
[344707828,1733731701628,-32270.23688472,0.0001999,2]
[344707829,1733731701649,-800.0,0.0002,3]
[344707830,1733731701671,-797.0,0.0002,3]
[344707831,1733731701691,-797.0,0.0002,3]
[344707832,1733731701712,-797.0,0.0002,3]
[344707833,1733731701732,-947.72666749,0.0002,2]
[344707834,1733731716569,220.91074117,0.00019999,2]
[344707838,1733731750908,57148.14807,0.00030282,30]
[344707839,1733731766820,184.0922843,0.00019999,2]
[344707840,1733731780242,153.41023692,0.00019999,2]
[344707841,1733731781812,9662.15127886,0.00018694,2]
[344707842,1733731782148,9662.15127886,0.00019029,2]
[344707843,1733731782606,9662.15127886,0.00019235,2]
[344707844,1733731782870,9662.15127886,0.00019515,2]
[344707845,1733731783198,9662.15127886,0.00019772,2]
[344707846,1733731790352,150.01,0.00019999,2]
[344707850,1733731799466,23914.2181853,0.00019772,2]
[344707851,1733731810275,150.01,0.00019999,2]
[344707852,1733731820346,150.01,0.00019999,2]
[344707853,1733731830261,150.01,0.00019999,2]
[344707882,1733731832613,-991.13064372,0.00020347,2]
[344707884,1733731832623,-300.0,0.00020376,2]
[344707885,1733731832633,-300.0,0.00020376,2]
[344707886,1733731832642,-106.52774198,0.00020377,2]
[344707887,1733731832654,-1352.145,0.00020377,2]
[344707888,1733731832668,-4383.5685869,0.00020377,2]
[344707889,1733731832680,-29900.85194878,0.00020377,2]
[344707891,1733731832783,-11487.34416951,0.00020377,2]
[344707892,1733731832795,-8733.55252854,0.00020377,2]
[344707893,1733731832805,-1527.08887553,0.00020389,2]
[344707935,1733731838618,-8135.06240333,0.00020389,2]
[344707937,1733731838631,-339.695491,0.00020447,2]
[344707939,1733731838640,-9662.15127886,0.00020666,2]
[344707941,1733731838650,-9662.15127886,0.00020998,2]
[344707943,1733731838658,-500.0,0.00021359,2]
[344707945,1733731838671,-491.80630381,0.00021359,2]
[344707947,1733731838680,-562.40624986,0.00021359,2]
[344707949,1733731838689,-500.0,0.00021359,2]
[344707951,1733731838698,-500.0,0.00021359,2]
[344707953,1733731838707,-500.0,0.00021359,2]
[344707955,1733731838716,-500.0,0.00021359,2]
[344707957,1733731838725,-500.0,0.00021359,2]
[344707959,1733731838735,-500.0,0.00021359,2]
[344707961,1733731838744,-9662.15127888,0.0002136,2]
[344707963,1733731838753,-8777.3446823,0.00021564,2]
[344707965,1733731838762,-991.1306437,0.00021752,2]
[344707967,1733731838771,-175.0,0.00022,2]
[344707969,1733731838781,-202.0,0.00022,2]
[344707971,1733731838790,-159.0,0.00022,2]
[344707973,1733731838799,-4501.842,0.0002217,2]
[344707975,1733731838809,-420.0,0.00022179,2]
[344707977,1733731838818,-175.0,0.00022192,2]
[344707980,1733731838827,-420.0,0.00022414,2]
[344707982,1733731838836,-257.69620231,0.00022829,2]
[344707984,1733731838846,-312.52,0.00023,2]
[344707986,1733731838855,-300.0,0.00023,2]
[344707988,1733731838864,-300.0,0.00023,2]
[344707990,1733731838876,-300.0,0.00023,2]
[344707992,1733731838886,-300.0,0.00023,2]
[344707994,1733731838895,-300.0,0.00023,2]
[344707996,1733731838904,-300.0,0.00023,2]
[344707998,1733731838917,-400.0,0.00023,2]
[344708000,1733731838927,-175.0,0.00023014,2]
[344708002,1733731838936,-159.0,0.00023014,2]
[344708004,1733731838945,-169.792459,0.00023026,2]
[344708006,1733731838955,-150.0,0.00023145,2]
[344708008,1733731838964,-150.786,0.00023145,2]
[344708010,1733731838976,-150.662,0.00023145,2]
[344708012,1733731838986,-455.18315703,0.00023145,2]
[344708014,1733731838998,-76.81684297,0.00023145,2]
[344708016,1733731839007,-2371.0,0.00023145,2]
[344708018,1733731839016,-2166.0,0.00023145,2]
[344708020,1733731839026,-991.1306437,0.00023157,2]
[344708022,1733731839035,-150.88817859,0.00023256,2]
[344708024,1733731839044,-400.0,0.00023288,2]
[344708026,1733731839054,-1950.617796,0.000235,2]
[344708028,1733731839064,-186.162628,0.00023562,2]
[344708030,1733731839073,-1327.38389521,0.00023568,3]
[344708170,1733731840608,-9672.64405105,0.00023568,3]
[344708177,1733731840661,-302.58642196,0.00023568,3]
[344708730,1733731847056,-213.0,0.00022,2]
[344708732,1733731847066,-2224.74518582,0.00023568,3]
[344708735,1733731847076,-169.792459,0.00023887,2]
[344708737,1733731847085,-160.13481012,0.0002397,2]
[344708739,1733731847095,-587.0,0.00024141,2]
[344708741,1733731847104,-400.0,0.00024149,2]
[344708743,1733731847113,-162.0,0.00024164,2]
[344708745,1733731847122,-346.79246047,0.00024399,2]
[344708747,1733731847132,-298.02616142,0.00024399,2]
[344708749,1733731847141,-292.96164934,0.00024399,2]
[344708751,1733731847150,-489.14522643,0.00024399,2]
[344708753,1733731847159,-500.0,0.00024399,2]
[344708755,1733731847169,-38312.32190292,0.000244,10]
[344708757,1733731847178,-991.1306437,0.00024562,2]
[344708759,1733731847188,-151.0,0.000246,9]
[344708761,1733731847197,-587.0,0.00024655,2]
[344708763,1733731847206,-169.792459,0.00024747,2]
[344708765,1733731847215,-35658.6622972,0.00025,2]
[344708767,1733731847224,-500.0,0.00025,7]
[344708769,1733731847235,-500.0,0.00025,14]
[344708771,1733731847245,-400.0,0.00025011,2]
[344708773,1733731847254,-155.25674051,0.00025168,2]
[344708775,1733731847263,-154.8666538,0.00025168,2]
[344708777,1733731847272,-151.0,0.000252,10]
[344708779,1733731847281,-400.0,0.00025873,2]
[344708781,1733731847292,-151.0,0.000259,11]
[344708783,1733731847301,-991.1306437,0.00025967,2]
[344708785,1733731847310,-418.021575,0.00026,7]
[344708787,1733731847319,-150.0,0.00026145,2]
[344708789,1733731847328,-150.0,0.00026145,2]
[344708791,1733731847337,-532.0,0.00026145,2]
[344708793,1733731847347,-2364.814,0.00026145,2]
[344708795,1733731847356,-2166.0,0.00026145,2]